[Event "Kvibergspelen 2018"]
[Site "Prioritet Serneke Arena, Krutvagen 2, Gothenburg, Sweden"]
[Date "2018.04.20"]
[Round "2.12"]
[White "Wickstrom, Tommy"]
[Black "Naslund, Mikael"]
[Result "0-1"]
[TimeControl "15 minutes + 5 seconds per move from move one (Round 1 - 4) / 90 minutes + 30 seconds per move from move one (Round 5 - 8)"]
[BlackTitle "FM"]
[WhiteFideId "1713442"]
[BlackFideId "1708260"]
[WhiteElo "1977"]
[BlackElo "2224"]

1. d4 {[%clk 00:15:08]} {[%emt 00:00:02]} Nf6 {[%clk 00:15:09]} {[%emt
00:00:01]} 2. c4 {[%clk 00:15:12]} {[%emt 00:00:02]} g6 {[%clk 00:15:13]}
{[%emt 00:00:02]} 3. Nc3 {[%clk 00:15:15]} {[%emt 00:00:01]} d5 {[%clk
00:15:17]} 4. Bf4 {[%clk 00:15:19]} {[%emt 00:00:02]} Bg7 {[%clk 00:15:16]}
{[%emt 00:00:06]} 5. Nf3 {[%clk 00:15:17]} {[%emt 00:00:07]} c6 {[%clk
00:14:49]} {[%emt 00:00:32]} 6. Rc1 {[%clk 00:15:09]} {[%emt 00:00:13]} O-O
{[%clk 00:14:33]} {[%emt 00:00:22]} 7. e3 {[%clk 00:15:02]} {[%emt 00:00:12]}
Qa5 {[%clk 00:14:02]} {[%emt 00:00:36]} 8. Qb3 {[%clk 00:14:44]} {[%emt
00:00:23]} Nbd7 {[%clk 00:13:41]} {[%emt 00:00:26]} 9. Be2 {[%clk 00:14:36]}
{[%emt 00:00:12]} dxc4 {[%clk 00:12:06]} {[%emt 00:01:40]} 10. Bxc4 {[%clk
00:14:36]} {[%emt 00:00:05]} Nb6 {[%clk 00:12:01]} {[%emt 00:00:10]} 11. Bc7
{[%clk 00:09:16]} {[%emt 00:05:25]} Ne4 {[%clk 00:08:36]} {[%emt 00:03:30]} 12.
O-O {[%clk 00:08:35]} {[%emt 00:00:47]} Nd6 {[%clk 00:07:23]} {[%emt 00:01:18]}
13. Be2 {[%clk 00:06:33]} {[%emt 00:02:06]} Be6 {[%clk 00:07:19]} {[%emt
00:00:09]} 14. Qc2 {[%clk 00:06:36]} {[%emt 00:00:02]} Rac8 {[%clk 00:06:41]}
{[%emt 00:00:44]} 15. Bxb6 {[%clk 00:06:35]} {[%emt 00:00:06]} axb6 {[%clk
00:06:39]} {[%emt 00:00:07]} 16. a3 {[%clk 00:06:14]} {[%emt 00:00:26]} b5
{[%clk 00:05:13]} {[%emt 00:01:31]} 17. Ng5 {[%clk 00:05:41]} {[%emt 00:00:38]}
Bd7 {[%clk 00:04:58]} {[%emt 00:00:20]} 18. Nge4 {[%clk 00:05:32]} {[%emt
00:00:14]} b4 {[%clk 00:04:27]} {[%emt 00:00:36]} 19. Nxd6 {[%clk 00:04:43]}
{[%emt 00:00:54]} exd6 {[%clk 00:04:29]} {[%emt 00:00:03]} 20. axb4 {[%clk
00:04:03]} {[%emt 00:00:45]} Qxb4 {[%clk 00:04:26]} {[%emt 00:00:08]} 21. Rfd1
{[%clk 00:03:49]} {[%emt 00:00:19]} d5 {[%clk 00:04:15]} {[%emt 00:00:17]} 22.
Na4 {[%clk 00:03:28]} {[%emt 00:00:25]} Bf5 {[%clk 00:03:54]} {[%emt 00:00:25]}
23. Bd3 {[%clk 00:03:18]} {[%emt 00:00:15]} Ra8 {[%clk 00:03:07]} {[%emt
00:00:52]} 24. Nc5 {[%clk 00:02:48]} {[%emt 00:00:35]} Bg4 {[%clk 00:03:02]}
{[%emt 00:00:10]} 25. f3 {[%clk 00:02:44]} {[%emt 00:00:09]} Bc8 {[%clk
00:03:06]} {[%emt 00:00:01]} 26. Ra1 {[%clk 00:02:16]} {[%emt 00:00:33]} Rxa1
{[%clk 00:02:54]} {[%emt 00:00:17]} 27. Rxa1 {[%clk 00:02:20]} {[%emt
00:00:01]} Re8 {[%clk 00:02:44]} {[%emt 00:00:15]} 28. Kf2 {[%clk 00:02:24]}
{[%emt 00:00:01]} h5 {[%clk 00:01:49]} {[%emt 00:01:00]} 29. Qc3 {[%clk
00:02:28]} {[%emt 00:00:02]} Qb6 {[%clk 00:01:45]} {[%emt 00:00:09]} 30. b4
{[%clk 00:02:09]} {[%emt 00:00:24]} Qd8 {[%clk 00:01:45]} {[%emt 00:00:05]} 31.
Bf1 {[%clk 00:01:28]} {[%emt 00:00:46]} Qh4+ {[%clk 00:01:30]} {[%emt
00:00:20]} 32. Kg1 {[%clk 00:01:31]} {[%emt 00:00:02]} Rxe3 {[%clk 00:01:17]}
{[%emt 00:00:19]} 33. g3 {[%clk 00:00:41]} {[%emt 00:00:55]} Qxd4 {[%clk
00:01:11]} {[%emt 00:00:10]} 34. Qxd4 {[%clk 00:00:45]} {[%emt 00:00:02]} Bxd4
{[%clk 00:01:15]} {[%emt 00:00:01]} 35. Ra8 {[%clk 00:00:47]} {[%emt 00:00:03]}
Ra3+ {[%clk 00:01:09]} {[%emt 00:00:10]} 0-1

[Event "Kvibergspelen 2018"]
[Site "Prioritet Serneke Arena, Krutvagen 2, Gothenburg, Sweden"]
[Date "2018.04.20"]
[Round "2.13"]
[White "Nilsson, Anders"]
[Black "Nguyen, Gabriel"]
[Result "1-0"]
[TimeControl "15 minutes + 5 seconds per move from move one (Round 1 - 4) / 90 minutes + 30 seconds per move from move one (Round 5 - 8)"]
[WhiteTitle "CM"]
[WhiteFideId "1705423"]
[BlackFideId "1720791"]
[WhiteElo "2217"]
[BlackElo "2024"]

1. d4 {[%clk 00:15:09]} {[%emt 00:25:24]} Nf6 {[%clk 00:15:08]} {[%emt
00:00:02]} 2. Nf3 {[%clk 00:15:08]} {[%emt 00:00:06]} g6 {[%clk 00:15:11]}
{[%emt 00:00:02]} 3. Bg5 {[%clk 00:15:12]} Bg7 {[%clk 00:15:15]} {[%emt
00:00:02]} 4. Nbd2 {[%clk 00:15:11]} {[%emt 00:00:07]} O-O {[%clk 00:15:04]}
{[%emt 00:00:16]} 5. e3 {[%clk 00:15:11]} {[%emt 00:00:05]} d6 {[%clk
00:15:04]} {[%emt 00:00:05]} 6. Bc4 {[%clk 00:14:33]} {[%emt 00:00:43]} b6
{[%clk 00:13:48]} {[%emt 00:01:21]} 7. c3 {[%clk 00:14:31]} {[%emt 00:00:07]}
Bb7 {[%clk 00:13:45]} {[%emt 00:00:08]} 8. a4 {[%clk 00:14:31]} {[%emt
00:00:05]} c5 {[%clk 00:13:20]} {[%emt 00:00:29]} 9. O-O {[%clk 00:13:45]}
{[%emt 00:00:51]} Nbd7 {[%clk 00:11:12]} {[%emt 00:02:13]} 10. Qe2 {[%clk
00:13:45]} {[%emt 00:00:06]} d5 {[%clk 00:10:59]} {[%emt 00:00:18]} 11. Ba6
{[%clk 00:13:37]} {[%emt 00:00:12]} Bxa6 {[%clk 00:10:57]} {[%emt 00:00:08]} 12.
Qxa6 {[%clk 00:13:41]} {[%emt 00:00:01]} Qc7 {[%clk 00:11:00]} {[%emt
00:00:02]} 13. a5 {[%clk 00:13:19]} {[%emt 00:00:26]} Qc8 {[%clk 00:10:31]}
{[%emt 00:00:33]} 14. Qe2 {[%clk 00:12:43]} {[%emt 00:00:42]} Qb7 {[%clk
00:10:20]} {[%emt 00:00:16]} 15. b4 {[%clk 00:12:07]} {[%emt 00:00:40]} c4
{[%clk 00:09:59]} {[%emt 00:00:27]} 16. h3 {[%clk 00:11:20]} {[%emt 00:00:52]}
Rfe8 {[%clk 00:09:48]} {[%emt 00:00:15]} 17. Ra2 {[%clk 00:11:11]} {[%emt
00:00:15]} b5 {[%clk 00:09:26]} {[%emt 00:00:27]} 18. a6 {[%clk 00:11:06]}
{[%emt 00:00:10]} Qc6 {[%clk 00:08:50]} {[%emt 00:00:41]} 19. Ra5 {[%clk
00:11:07]} {[%emt 00:00:04]} Nb6 {[%clk 00:08:34]} {[%emt 00:00:21]} 20. Ne5
{[%clk 00:11:07]} {[%emt 00:00:05]} Qc8 {[%clk 00:08:26]} {[%emt 00:00:13]} 21.
Rxb5 {[%clk 00:10:29]} {[%emt 00:00:43]} Qxa6 {[%clk 00:08:29]} {[%emt
00:00:02]} 22. Ra5 {[%clk 00:10:34]} Qb7 {[%clk 00:08:27]} {[%emt 00:00:07]} 23.
Rfa1 {[%clk 00:10:37]} {[%emt 00:00:01]} h5 {[%clk 00:06:52]} {[%emt 00:01:39]}
24. Qf3 {[%clk 00:10:13]} {[%emt 00:00:32]} Rf8 {[%clk 00:06:46]} {[%emt
00:00:10]} 25. Bf4 {[%clk 00:09:55]} {[%emt 00:00:22]} e6 {[%clk 00:06:05]}
{[%emt 00:00:47]} 26. Nexc4 {[%clk 00:09:25]} {[%emt 00:00:35]} Nxc4 {[%clk
00:05:52]} {[%emt 00:00:19]} 27. Nxc4 {[%clk 00:09:28]} {[%emt 00:00:02]} Ne4
{[%clk 00:05:56]} 28. Nd6 {[%clk 00:09:27]} {[%emt 00:00:06]} Qc6 {[%clk
00:05:47]} {[%emt 00:00:12]} 29. Ra6 {[%clk 00:08:46]} {[%emt 00:00:47]} Qxc3
{[%clk 00:05:50]} {[%emt 00:00:02]} 30. Nxe4 {[%clk 00:08:49]} {[%emt
00:00:02]} dxe4 {[%clk 00:05:53]} {[%emt 00:00:02]} 31. Qxe4 {[%clk 00:08:53]}
{[%emt 00:00:02]} Qxb4 {[%clk 00:05:55]} {[%emt 00:00:03]} 32. Bd6 {[%clk
00:08:56]} {[%emt 00:00:02]} Qb2 {[%clk 00:05:49]} {[%emt 00:00:10]} 33. Bxf8
{[%clk 00:08:38]} {[%emt 00:00:25]} Rxf8 {[%clk 00:05:52]} {[%emt 00:00:01]} 34.
Rxa7 {[%emt 00:00:03]} Qb6 {[%clk 00:05:31]} {[%emt 00:00:26]} 35. Ra8 {[%clk
00:08:38]} {[%emt 00:00:07]} Qd6 {[%clk 00:05:29]} {[%emt 00:00:07]} 36. Rxf8+
{[%clk 00:08:37]} {[%emt 00:00:06]} Bxf8 {[%clk 00:05:32]} {[%emt 00:00:01]} 37.
Ra8 {[%clk 00:08:15]} {[%emt 00:00:27]} Qd7 {[%clk 00:05:28]} {[%emt 00:00:09]}
38. Rb8 {[%clk 00:07:59]} {[%emt 00:00:20]} Qc7 {[%clk 00:05:28]} {[%emt
00:00:05]} 39. Qa8 {[%clk 00:07:36]} {[%emt 00:00:28]} Qd6 {[%clk 00:04:55]}
{[%emt 00:00:38]} 40. Rd8 {[%clk 00:07:18]} {[%emt 00:00:23]} Qb4 {[%clk
00:04:56]} {[%emt 00:00:05]} 41. g3 {[%clk 00:07:19]} {[%emt 00:00:05]} Kg7
{[%clk 00:04:51]} {[%emt 00:00:09]} 42. Qe4 {[%clk 00:07:10]} {[%emt 00:00:14]}
Qe7 {[%clk 00:04:40]} {[%emt 00:00:16]} 43. Rb8 {[%clk 00:07:09]} {[%emt
00:00:05]} Qc7 {[%clk 00:04:41]} {[%emt 00:00:03]} 44. Qe5+ {[%clk 00:07:02]}
{[%emt 00:00:14]} Qxe5 {[%clk 00:04:41]} {[%emt 00:00:05]} 45. dxe5 {[%clk
00:07:06]} Be7 {[%clk 00:04:36]} {[%emt 00:00:10]} 46. Kg2 {[%clk 00:07:09]}
{[%emt 00:00:02]} h4 {[%clk 00:04:31]} {[%emt 00:00:11]} 47. g4 {[%clk
00:07:12]} {[%emt 00:00:02]} g5 {[%clk 00:04:33]} {[%emt 00:00:03]} 48. Kf3
{[%clk 00:07:16]} {[%emt 00:00:01]} f6 {[%clk 00:04:27]} {[%emt 00:00:11]} 49.
Ke4 {[%clk 00:07:12]} {[%emt 00:00:08]} Kg6 {[%clk 00:04:25]} {[%emt 00:00:07]}
50. Rg8+ {[%clk 00:06:43]} {[%emt 00:00:33]} Kf7 {[%clk 00:04:29]} {[%emt
00:00:02]} 51. Ra8 {[%clk 00:06:46]} {[%emt 00:00:02]} Kg6 {[%clk 00:04:29]}
{[%emt 00:00:05]} 52. exf6 {[%clk 00:06:50]} {[%emt 00:00:02]} Kxf6 {[%clk
00:04:31]} {[%emt 00:00:03]} 53. f4 {[%clk 00:06:49]} {[%emt 00:00:06]} Bc5
{[%clk 00:04:21]} {[%emt 00:00:15]} 54. Ra5 {[%clk 00:06:49]} {[%emt 00:00:04]}
Bb6 {[%clk 00:04:23]} {[%emt 00:00:03]} 55. Rxg5 {[%clk 00:06:52]} {[%emt
00:00:03]} Bc7 {[%clk 00:04:21]} {[%emt 00:00:06]} 56. Rh5 {[%clk 00:06:55]}
{[%emt 00:00:02]} Bd8 {[%clk 00:04:08]} {[%emt 00:00:18]} 57. Rxh4 {[%clk
00:06:54]} {[%emt 00:00:06]} Kg6 {[%clk 00:04:07]} {[%emt 00:00:06]} 58. Rh5
{[%clk 00:06:57]} {[%emt 00:00:01]} Bf6 {[%clk 00:04:11]} {[%emt 00:00:01]} 59.
Re5 {[%clk 00:07:01]} {[%emt 00:00:02]} Bxe5 {[%clk 00:04:08]} {[%emt
00:00:08]} 60. Kxe5 {[%clk 00:07:04]} {[%emt 00:00:02]} 1-0

[Event "Kvibergspelen 2018"]
[Site "Prioritet Serneke Arena, Krutvagen 2, Gothenburg, Sweden"]
[Date "2018.04.20"]
[Round "2.14"]
[White "Bergre, Joachim"]
[Black "Johansson, Gunnar"]
[Result "0-1"]
[TimeControl "15 minutes + 5 seconds per move from move one (Round 1 - 4) / 90 minutes + 30 seconds per move from move one (Round 5 - 8)"]
[WhiteFideId "1704893"]
[BlackFideId "1703501"]
[WhiteElo "1974"]
[BlackElo "2212"]

1. c4 {[%clk 00:15:04]} {[%emt 00:00:05]} c6 {[%clk 00:15:07]} {[%emt
00:00:03]} 2. g3 {[%clk 00:15:05]} {[%emt 00:00:04]} d5 {[%clk 00:15:11]}
{[%emt 00:00:02]} 3. cxd5 {[%clk 00:15:00]} {[%emt 00:00:10]} cxd5 {[%clk
00:15:14]} {[%emt 00:00:02]} 4. Bg2 {[%clk 00:14:56]} {[%emt 00:00:08]} e5
{[%clk 00:15:06]} {[%emt 00:00:13]} 5. d3 {[%clk 00:14:28]} {[%emt 00:00:33]}
h6 {[%clk 00:14:57]} {[%emt 00:00:14]} 6. Nf3 {[%clk 00:14:07]} {[%emt
00:00:26]} Nc6 {[%clk 00:14:56]} {[%emt 00:00:07]} 7. O-O {[%clk 00:14:02]}
{[%emt 00:00:09]} Nf6 {[%clk 00:14:57]} {[%emt 00:00:04]} 8. Nc3 {[%clk
00:13:34]} {[%emt 00:00:33]} Be7 {[%clk 00:14:53]} {[%emt 00:00:09]} 9. a3
{[%clk 00:12:28]} {[%emt 00:01:12]} O-O {[%clk 00:14:52]} {[%emt 00:00:05]} 10.
b4 {[%clk 00:12:15]} {[%emt 00:00:18]} a6 {[%clk 00:10:36]} {[%emt 00:04:22]}
11. Bb2 {[%clk 00:12:07]} {[%emt 00:00:12]} Be6 {[%clk 00:10:25]} {[%emt
00:00:16]} 12. Rc1 {[%clk 00:11:58]} {[%emt 00:00:15]} Rc8 {[%clk 00:09:57]}
{[%emt 00:00:33]} 13. Na4 {[%clk 00:11:21]} {[%emt 00:00:42]} Nd7 {[%clk
00:09:56]} {[%emt 00:00:06]} 14. d4 {[%clk 00:09:45]} {[%emt 00:01:41]} e4
{[%clk 00:09:49]} {[%emt 00:00:12]} 15. Ne5 {[%clk 00:09:37]} {[%emt 00:00:12]}
Ncxe5 {[%clk 00:08:52]} {[%emt 00:01:02]} 16. dxe5 {[%clk 00:09:34]} {[%emt
00:00:09]} b5 {[%clk 00:08:20]} {[%emt 00:00:37]} 17. Rxc8 {[%clk 00:08:53]}
{[%emt 00:00:45]} Qxc8 {[%clk 00:08:23]} {[%emt 00:00:02]} 18. Nc3 {[%clk
00:08:35]} {[%emt 00:00:23]} Qc4 {[%clk 00:08:04]} {[%emt 00:00:24]} 19. Qd2
{[%clk 00:07:44]} {[%emt 00:00:56]} Rc8 {[%clk 00:07:22]} {[%emt 00:00:47]} 20.
Rd1 {[%clk 00:05:50]} {[%emt 00:01:59]} Nb6 {[%clk 00:06:59]} {[%emt 00:00:28]}
21. f4 {[%clk 00:05:20]} {[%emt 00:00:35]} Qc6 {[%clk 00:05:33]} {[%emt
00:01:31]} 22. Ba1 {[%clk 00:04:23]} {[%emt 00:01:03]} Qb7 {[%clk 00:03:28]}
{[%emt 00:02:09]} 23. h3 {[%clk 00:03:02]} {[%emt 00:01:26]} f5 {[%clk
00:03:06]} {[%emt 00:00:28]} 24. exf6 {[%clk 00:02:43]} {[%emt 00:00:24]} Bxf6
{[%clk 00:03:09]} {[%emt 00:00:02]} 25. g4 {[%clk 00:02:25]} {[%emt 00:00:22]}
Nc4 {[%clk 00:02:56]} {[%emt 00:00:17]} 26. Qc1 {[%clk 00:02:26]} {[%emt
00:00:05]} Qa7+ {[%clk 00:02:23]} {[%emt 00:00:38]} 27. Kh1 {[%clk 00:02:29]}
{[%emt 00:00:01]} Ne3 {[%clk 00:02:03]} {[%emt 00:00:25]} 28. f5 {[%clk
00:02:13]} {[%emt 00:00:22]} Bf7 {[%clk 00:01:46]} {[%emt 00:00:22]} 29. Nxe4
{[%clk 00:00:23]} {[%emt 00:01:55]} Rxc1 {[%clk 00:01:42]} {[%emt 00:00:09]} 30.
Nxf6+ {[%clk 00:00:26]} {[%emt 00:00:01]} gxf6 31. Rxc1 {[%clk 00:00:31]} Nxg2
{[%clk 00:01:32]} {[%emt 00:00:18]} 32. Kxg2 {[%clk 00:00:30]} {[%emt
00:00:05]} Qe3 {[%emt 00:00:31]} 0-1

[Event "Kvibergspelen 2018"]
[Site "Prioritet Serneke Arena, Krutvagen 2, Gothenburg, Sweden"]
[Date "2018.04.20"]
[Round "2.15"]
[White "Moller, Mikael"]
[Black "Olsson, William"]
[Result "1-0"]
[TimeControl "15 minutes + 5 seconds per move from move one (Round 1 - 4) / 90 minutes + 30 seconds per move from move one (Round 5 - 8)"]
[WhiteFideId "1738461"]
[BlackFideId "1741721"]
[WhiteElo "1962"]
[BlackElo "2178"]

1. e4 {[%clk 00:15:09]} {[%emt 00:04:13]} e5 {[%clk 00:15:05]} {[%emt
00:00:05]} 2. Nf3 {[%clk 00:15:11]} {[%emt 00:00:03]} Nc6 {[%clk 00:15:09]}
{[%emt 00:00:02]} 3. d4 {[%clk 00:15:13]} {[%emt 00:00:03]} exd4 {[%clk
00:15:11]} {[%emt 00:00:03]} 4. Nxd4 {[%clk 00:15:16]} {[%emt 00:00:02]} Nf6
{[%clk 00:15:15]} {[%emt 00:00:02]} 5. Nc3 {[%clk 00:15:19]} {[%emt 00:00:02]}
Bb4 {[%clk 00:15:05]} {[%emt 00:00:14]} 6. Nxc6 {[%clk 00:15:18]} {[%emt
00:00:07]} bxc6 {[%clk 00:15:05]} {[%emt 00:00:05]} 7. Qf3 {[%clk 00:14:34]}
{[%emt 00:00:48]} h6 {[%clk 00:14:19]} {[%emt 00:00:52]} 8. Bd2 {[%clk
00:14:24]} {[%emt 00:00:15]} O-O {[%clk 00:13:56]} {[%emt 00:00:28]} 9. O-O-O
{[%clk 00:14:24]} {[%emt 00:00:06]} Qe7 {[%clk 00:13:04]} {[%emt 00:00:56]} 10.
Re1 {[%clk 00:14:02]} {[%emt 00:00:27]} d6 {[%clk 00:12:47]} {[%emt 00:00:22]}
11. h3 {[%clk 00:14:00]} {[%emt 00:00:07]} Rb8 {[%clk 00:12:15]} {[%emt
00:00:37]} 12. g4 {[%clk 00:14:02]} {[%emt 00:00:02]} Nd7 {[%clk 00:11:39]}
{[%emt 00:00:41]} 13. h4 {[%clk 00:13:58]} {[%emt 00:00:09]} Ne5 {[%clk
00:11:37]} {[%emt 00:00:07]} 14. Qg3 {[%clk 00:13:56]} {[%emt 00:00:07]} Nxg4
{[%clk 00:10:53]} {[%emt 00:00:49]} 15. f3 {[%clk 00:12:21]} {[%emt 00:01:41]}
Ne5 {[%clk 00:10:34]} {[%emt 00:00:22]} 16. Bxh6 {[%clk 00:12:16]} {[%emt
00:00:11]} f6 {[%clk 00:10:04]} {[%emt 00:00:34]} 17. Rg1 {[%clk 00:12:03]}
{[%emt 00:00:19]} Rf7 {[%clk 00:09:55]} {[%emt 00:00:13]} 18. f4 {[%clk
00:11:23]} {[%emt 00:00:46]} Bxc3 {[%clk 00:09:40]} {[%emt 00:00:18]} 19. Qxc3
{[%clk 00:11:00]} {[%emt 00:00:29]} Ng4 {[%clk 00:09:34]} {[%emt 00:00:11]} 20.
Bc4 {[%clk 00:11:00]} {[%emt 00:00:04]} Nxh6 {[%clk 00:09:04]} {[%emt
00:00:35]} 21. f5 {[%clk 00:11:03]} {[%emt 00:00:02]} Kf8 {[%clk 00:07:32]}
{[%emt 00:01:30]} 22. Rg6 {[%clk 00:10:49]} {[%emt 00:00:25]} Qe5 {[%clk
00:04:29]} {[%emt 00:03:09]} 23. Bxf7 {[%clk 00:10:51]} {[%emt 00:00:04]} Qxc3
{[%clk 00:02:28]} {[%emt 00:02:06]} 24. bxc3 {[%clk 00:10:54]} {[%emt
00:00:02]} Nxf7 {[%clk 00:01:55]} {[%emt 00:00:38]} 25. Reg1 {[%clk 00:10:55]}
{[%emt 00:00:04]} Ba6 {[%clk 00:01:51]} {[%emt 00:00:10]} 26. Rxg7 {[%clk
00:10:54]} {[%emt 00:00:06]} Ke7 {[%clk 00:01:48]} {[%emt 00:00:07]} 27. Rg8
{[%clk 00:09:39]} {[%emt 00:01:20]} Rxg8 {[%clk 00:00:38]} {[%emt 00:01:15]} 28.
Rxg8 {[%clk 00:09:43]} {[%emt 00:00:01]} Be2 {[%clk 00:00:33]} {[%emt
00:00:08]} 29. Kd2 {[%clk 00:09:46]} {[%emt 00:00:04]} Bf3 {[%clk 00:00:31]}
{[%emt 00:00:06]} 30. Ke3 {[%clk 00:09:49]} {[%emt 00:00:03]} Ne5 {[%clk
00:00:35]} {[%emt 00:00:02]} 31. Ra8 {[%clk 00:09:45]} {[%emt 00:00:08]} Kd7
{[%clk 00:00:16]} {[%emt 00:00:23]} 32. Rxa7 {[%clk 00:09:48]} {[%emt
00:00:03]} Bd1 {[%clk 00:00:18]} {[%emt 00:00:03]} 33. a4 {[%clk 00:09:36]}
{[%emt 00:00:17]} Bxc2 {[%clk 00:00:17]} {[%emt 00:00:06]} 34. h5 {[%clk
00:09:33]} {[%emt 00:00:08]} Bd1 {[%clk 00:00:16]} {[%emt 00:00:06]} 35. h6
{[%clk 00:09:34]} {[%emt 00:00:04]} Bxa4 {[%clk 00:00:06]} {[%emt 00:00:16]} 36.
h7 {[%clk 00:09:15]} {[%emt 00:00:23]} Nf7 {[%clk 00:00:09]} {[%emt 00:00:02]}
37. Rxa4 {[%clk 00:09:18]} {[%emt 00:00:02]} Ke7 {[%clk 00:00:12]} {[%emt
00:00:02]} 38. Ra8 {[%clk 00:09:22]} {[%emt 00:00:02]} d5 {[%clk 00:00:12]}
{[%emt 00:00:04]} 39. h8=Q {[%emt 00:00:06]} Nxh8 {[%clk 00:00:11]} {[%emt
00:00:03]} 40. Rxh8 {[%clk 00:09:27]} {[%emt 00:00:02]} dxe4 {[%clk 00:00:14]}
{[%emt 00:00:02]} 41. Kxe4 {[%clk 00:09:30]} {[%emt 00:00:02]} Kd6 {[%clk
00:00:18]} 42. Re8 {[%clk 00:09:20]} {[%emt 00:00:14]} Kc5 {[%clk 00:00:22]}
{[%emt 00:00:02]} 43. Kd3 {[%clk 00:09:21]} {[%emt 00:00:03]} Kd5 {[%clk
00:00:25]} {[%emt 00:00:03]} 44. Re6 {[%clk 00:09:23]} {[%emt 00:00:02]} c5
{[%clk 00:00:28]} {[%emt 00:00:02]} 45. Rxf6 {[%clk 00:09:25]} {[%emt
00:00:03]} c4+ {[%clk 00:00:29]} {[%emt 00:00:04]} 46. Ke3 {[%clk 00:09:27]}
{[%emt 00:00:03]} Ke5 {[%clk 00:00:33]} {[%emt 00:00:02]} 47. Rf8 {[%clk
00:09:27]} {[%emt 00:00:05]} c5 {[%clk 00:00:36]} {[%emt 00:00:02]} 48. Kf3
{[%clk 00:09:26]} {[%emt 00:00:06]} Kd6 {[%clk 00:00:39]} {[%emt 00:00:02]} 49.
Ke4 {[%clk 00:09:29]} {[%emt 00:00:02]} Ke7 {[%clk 00:00:43]} {[%emt 00:00:01]}
50. Ra8 {[%clk 00:09:29]} {[%emt 00:00:05]} Kf6 {[%clk 00:00:46]} {[%emt
00:00:02]} 51. Kf4 {[%clk 00:09:27]} {[%emt 00:00:07]} Kf7 {[%clk 00:00:50]}
{[%emt 00:00:02]} 52. Ke5 {[%clk 00:09:26]} {[%emt 00:00:05]} Ke7 {[%clk
00:00:53]} {[%emt 00:00:03]} 53. Ra7+ {[%clk 00:09:29]} {[%emt 00:00:02]} Kf8
{[%clk 00:00:56]} {[%emt 00:00:01]} 54. f6 {[%clk 00:09:26]} {[%emt 00:00:08]}
Kg8 {[%clk 00:01:00]} {[%emt 00:00:01]} 55. Ke6 {[%clk 00:09:28]} {[%emt
00:00:03]} Kf8 {[%emt 00:00:13]} 1-0

[Event "Kvibergspelen 2018"]
[Site "Prioritet Serneke Arena, Krutvagen 2, Gothenburg, Sweden"]
[Date "2018.04.20"]
[Round "2.16"]
[White "Ronneland, Daniel"]
[Black "Larsson, Patrik"]
[Result "1-0"]
[TimeControl "15 minutes + 5 seconds per move from move one (Round 1 - 4) / 90 minutes + 30 seconds per move from move one (Round 5 - 8)"]
[WhiteFideId "1702130"]
[BlackFideId "1713744"]
[WhiteElo "2201"]
[BlackElo "2006"]

1. d4 {[%clk 00:14:57]} {[%emt 00:00:12]} d5 {[%clk 00:15:09]} {[%emt
00:00:02]} 2. c4 {[%clk 00:14:58]} {[%emt 00:00:04]} dxc4 {[%clk 00:15:12]}
{[%emt 00:00:02]} 3. e3 {[%clk 00:14:53]} {[%emt 00:00:10]} e5 {[%clk
00:15:06]} {[%emt 00:00:12]} 4. Bxc4 {[%clk 00:13:58]} {[%emt 00:01:00]} exd4
{[%clk 00:15:08]} {[%emt 00:00:02]} 5. exd4 {[%clk 00:14:01]} {[%emt 00:00:02]}
Bd6 {[%clk 00:15:11]} {[%emt 00:00:02]} 6. Nf3 {[%clk 00:13:52]} {[%emt
00:00:14]} Nf6 {[%clk 00:15:13]} {[%emt 00:00:02]} 7. O-O {[%clk 00:13:38]}
{[%emt 00:00:19]} O-O {[%clk 00:15:14]} {[%emt 00:00:03]} 8. h3 {[%clk
00:13:26]} {[%emt 00:00:17]} h6 {[%clk 00:14:55]} {[%emt 00:00:25]} 9. Nc3
{[%clk 00:13:17]} {[%emt 00:00:13]} Nc6 {[%clk 00:14:56]} {[%emt 00:00:04]} 10.
Re1 {[%clk 00:13:11]} {[%emt 00:00:10]} Bf5 {[%clk 00:14:44]} {[%emt 00:00:17]}
11. d5 {[%clk 00:11:54]} {[%emt 00:01:22]} Nb4 {[%clk 00:10:16]} {[%emt
00:04:33]} 12. Nd4 {[%clk 00:10:28]} {[%emt 00:01:31]} Bg6 {[%clk 00:08:38]}
{[%emt 00:01:43]} 13. Qf3 {[%clk 00:09:48]} {[%emt 00:00:44]} c5 {[%clk
00:07:48]} {[%emt 00:00:57]} 14. dxc6 {[%clk 00:09:02]} {[%emt 00:00:51]} Nxc6
{[%clk 00:06:56]} {[%emt 00:00:57]} 15. Nxc6 {[%clk 00:08:44]} {[%emt
00:00:23]} bxc6 {[%clk 00:06:59]} {[%emt 00:00:01]} 16. Qxc6 {[%clk 00:07:16]}
{[%emt 00:01:33]} Rc8 {[%clk 00:06:30]} {[%emt 00:00:35]} 17. Qa6 {[%clk
00:07:12]} {[%emt 00:00:08]} Bb8 {[%clk 00:05:10]} {[%emt 00:01:24]} 18. Bf1
{[%clk 00:05:53]} {[%emt 00:01:24]} Qc7 {[%clk 00:03:51]} {[%emt 00:01:25]} 19.
g3 {[%clk 00:05:56]} {[%emt 00:00:02]} Qd7 {[%clk 00:03:33]} {[%emt 00:00:24]}
20. Be3 {[%clk 00:05:28]} {[%emt 00:00:32]} Rc6 {[%clk 00:01:21]} {[%emt
00:02:17]} 21. Qa4 {[%clk 00:05:27]} {[%emt 00:00:06]} Qc8 {[%clk 00:01:18]}
{[%emt 00:00:08]} 22. Rad1 {[%clk 00:05:12]} {[%emt 00:00:18]} Ne4 {[%clk
00:01:05]} {[%emt 00:00:19]} 23. Nxe4 {[%emt 00:00:09]} 1-0